fUSD/lending_fUSD_20250702
["ID","MTS","AMOUNT","RATE_DAILY","PERIOD"]
[369094447,1751472649553,-460.0,0.00032876,12]
[369094448,1751472649563,-474.59,0.00032876,12]
[369094449,1751472649573,-460.0,0.00032876,12]
[369094450,1751472649583,-567.29,0.00032876,12]
[369094451,1751472649592,-460.0,0.00032876,12]
[369094452,1751472649602,-490.0,0.00032876,12]
[369094453,1751472649612,-460.0,0.00032876,12]
[369094454,1751472649622,-460.0,0.00032876,12]
[369094455,1751472649632,-460.0,0.00032876,12]
[369094456,1751472649641,-490.0,0.00032876,12]
[369094457,1751472649651,-460.0,0.00032876,12]
[369094458,1751472649660,-460.0,0.00032876,12]
[369094459,1751472649669,-613.75,0.00032876,12]
[369094460,1751472649678,-521.18048835,0.00032876,12]
[369094461,1751472649688,-460.0,0.00032876,12]
[369094462,1751472649697,-460.0,0.00032876,12]
[369094463,1751472649707,-460.0,0.00032876,12]
[369094464,1751472649716,-460.0,0.00032876,12]
[369094465,1751472649727,-696.74,0.00032876,12]
[369094466,1751472649736,-460.0,0.00032876,12]
[369094467,1751472649746,-460.0,0.00032876,12]
[369094468,1751472649755,-460.0,0.00032876,12]
[369094469,1751472649764,-488.17,0.00032876,12]
[369094470,1751472649774,-460.0,0.00032876,12]
[369094471,1751472649783,-1469.15,0.00032876,12]
[369094472,1751472649793,-460.0,0.00032876,12]
[369094473,1751472649803,-460.0,0.00032876,12]
[369094474,1751472649814,-500.0,0.00032876,12]
[369094475,1751472649824,-460.0,0.00032876,12]
[369094476,1751472649833,-460.0,0.00032876,12]
[369094477,1751472649843,-460.0,0.00032876,12]
[369094478,1751472649852,-608.8942507,0.00032876,12]
[369094479,1751472649862,-460.0,0.00032876,12]
[369094480,1751472649871,-660.95,0.00032876,12]
[369094481,1751472649880,-460.0,0.00032876,12]
[369094482,1751472649890,-602.70253048,0.00032876,12]
[369094483,1751472649900,-1720.1,0.00032876,12]
[369094484,1751472649909,-1336.28,0.00032876,12]
[369094485,1751472649920,-936.36,0.00032876,12]
[369094486,1751472649931,-460.0,0.00032876,12]
[369094487,1751472649942,-460.0,0.00032876,12]
[369094488,1751472649952,-460.0,0.00032876,12]
[369094489,1751472649963,-460.0,0.00032876,12]
[369094490,1751472649974,-460.0,0.00032876,12]
[369094491,1751472649984,-2369.82,0.00032876,12]
[369094492,1751472649993,-520.97912923,0.00032876,12]
[369094493,1751472650003,-683.04,0.00032876,12]
[369094494,1751472650013,-449.48441909,0.00032876,12]
[369094495,1751472650023,-460.0,0.00032876,12]
[369094496,1751472650033,-1444.11,0.00032876,12]
[369094497,1751472650043,-460.0,0.00032876,12]
[369094498,1751472650053,-460.0,0.00032876,12]
[369094499,1751472650066,-460.0,0.00032876,12]
[369094500,1751472650075,-1050.85,0.00032876,12]
[369094501,1751472650085,-460.0,0.00032876,12]
[369094502,1751472650095,-521.8877914,0.00032876,12]
[369094503,1751472650370,-460.0,0.00032876,12]
[369094504,1751472650380,-2521.78,0.00032876,12]
[369094505,1751472650390,-460.0,0.00032876,12]
[369094506,1751472650400,-460.0,0.00032876,12]
[369094507,1751472650409,-491.62615739,0.00032876,12]
[369094508,1751472650419,-460.0,0.00032876,12]
[369094509,1751472650430,-490.0,0.00032876,12]
[369094510,1751472650444,-460.0,0.00032876,12]
[369094511,1751472650456,-523.93692488,0.00032876,12]
[369094512,1751472650466,-1650.78,0.00032876,12]
[369094513,1751472650475,-469.73,0.00032876,12]
[369094514,1751472650486,-460.0,0.00032876,12]
[369094515,1751472650496,-460.0,0.00032876,12]
[369094516,1751472650506,-460.0,0.00032876,12]
[369094517,1751472650515,-460.0,0.00032876,12]
[369094518,1751472650528,-460.0,0.00032876,12]
[369094519,1751472650539,-460.0,0.00032876,12]
[369094520,1751472650549,-460.0,0.00032876,12]
[369094521,1751472650560,-490.76,0.00032876,12]
[369094522,1751472650570,-460.0,0.00032876,12]
[369094523,1751472650580,-460.0,0.00032876,12]
[369094524,1751472650590,-460.0,0.00032876,12]
[369094525,1751472650600,-490.0,0.00032876,12]
[369094526,1751472650610,-460.0,0.00032876,12]
[369094527,1751472650621,-1615.66,0.00032876,12]
[369094528,1751472650631,-460.0,0.00032876,12]
[369094529,1751472650641,-460.0,0.00032876,12]
[369094530,1751472650651,-606.96,0.00032876,12]
[369094531,1751472650660,-460.0,0.00032876,12]
[369094532,1751472650670,-194.86183909,0.00032876,12]
[369094533,1751472650680,-460.0,0.00032876,12]
[369094534,1751472650690,-460.0,0.00032876,12]
[369094535,1751472650699,-460.0,0.00032876,12]
[369094536,1751472650709,-522.63,0.00032876,12]
[369094537,1751472650719,-739.78,0.00032876,12]
[369094538,1751472650729,-460.0,0.00032876,12]
[369094539,1751472650739,-2939.01,0.00032876,12]
[369094540,1751472650748,-460.0,0.00032876,12]
[369094541,1751472650758,-460.0,0.00032876,12]
[369094542,1751472650768,-460.0,0.00032876,12]
[369094543,1751472650778,-460.0,0.00032876,12]
[369094544,1751472650787,-460.0,0.00032876,12]
[369094545,1751472650797,-460.0,0.00032876,12]
[369094546,1751472650807,-460.0,0.00032876,12]
[369094547,1751472650817,-1356.39,0.00032876,12]
[369094548,1751472650827,-460.0,0.00032876,12]
[369094549,1751472650837,-460.0,0.00032876,12]
[369094550,1751472650847,-460.0,0.00032876,12]
[369094551,1751472650857,-834.95,0.00032876,12]
[369094552,1751472650867,-490.0,0.00032876,12]
[369094553,1751472650876,-460.0,0.00032876,12]
[369094554,1751472650886,-490.0,0.00032876,12]
[369094555,1751472650898,-460.0,0.00032876,12]
[369094556,1751472650908,-460.0,0.00032876,12]
[369094557,1751472650919,-734.9,0.00032876,12]
[369094558,1751472650929,-460.0,0.00032876,12]
[369094559,1751472650939,-460.0,0.00032876,12]
[369094560,1751472650949,-460.0,0.00032876,7]
[369094561,1751472650960,-490.0,0.00032876,12]
[369094562,1751472650969,-460.0,0.00032876,12]
[369094563,1751472650978,-460.0,0.00032876,12]
[369094564,1751472650988,-572.73,0.00032876,12]
[369094565,1751472650997,-500.0,0.00032876,12]
[369094566,1751472651007,-500.0,0.00032876,12]
[369094567,1751472651017,-500.0,0.00032876,12]
[369094568,1751472651027,-500.0,0.00032876,12]
[369094569,1751472651038,-500.0,0.00032876,12]
[369094570,1751472651048,-520.0,0.00032876,12]
[369094571,1751472651059,-500.0,0.00032876,12]
[369094572,1751472651069,-500.0,0.00032876,12]
[369094573,1751472651079,-500.0,0.00032876,12]
[369094574,1751472651090,-430.0,0.00032876,12]
[369094575,1751472651100,-460.0,0.00032876,12]
[369094576,1751472651109,-460.0,0.00032876,12]
[369094577,1751472651119,-460.0,0.00032876,12]
[369094578,1751472651129,-460.0,0.00032876,12]
[369094579,1751472651139,-500.0,0.00032876,12]
[369094580,1751472651148,-460.0,0.00032876,12]
[369094581,1751472651158,-460.0,0.00032876,12]
[369094582,1751472651168,-520.0,0.00032876,12]
[369094583,1751472651178,-460.0,0.00032876,12]
[369094584,1751472651187,-500.0,0.00032876,12]
[369094585,1751472651197,-500.0,0.00032876,12]
[369094586,1751472651207,-631.14,0.00032876,12]
[369094587,1751472651216,-1895.42,0.00032876,12]
[369094588,1751472651226,-439.22559341,0.00032876,12]
[369094589,1751472651235,-460.0,0.00032876,12]
[369094590,1751472651245,-460.0,0.00032876,12]
[369094591,1751472651255,-460.0,0.00032876,12]
[369094592,1751472651264,-460.0,0.00032876,12]
[369094593,1751472651274,-1720.0,0.00032876,12]
[369094594,1751472651283,-490.0,0.00032876,12]
[369094595,1751472651293,-460.0,0.00032876,12]
[369094596,1751472651303,-460.0,0.00032876,12]
[369094597,1751472651315,-460.0,0.00032876,12]
[369094598,1751472651325,-490.0,0.00032876,12]
[369094599,1751472651335,-1800.49,0.00032876,12]
[369094600,1751472651345,-485.83,0.00032876,12]
[369094601,1751472651356,-460.0,0.00032876,12]
[369094602,1751472651365,-460.0,0.00032876,12]
[369094603,1751472651376,-460.0,0.00032876,12]
[369094604,1751472651386,-1376.69,0.00032876,12]
[369094605,1751472651396,-460.0,0.00032876,12]
[369094606,1751472651405,-460.0,0.00032876,12]
[369094607,1751472651415,-460.0,0.00032876,12]
[369094608,1751472651426,-460.0,0.00032876,12]
[369094609,1751472651436,-460.0,0.00032876,12]
[369094610,1751472651451,-460.0,0.00032876,12]
[369094611,1751472651460,-460.0,0.00032876,12]
[369094612,1751472651470,-460.0,0.00032876,12]
[369094613,1751472651480,-460.0,0.00032876,12]
[369094614,1751472651491,-2743.45,0.00032876,12]
[369094615,1751472651501,-552.7877893,0.00032876,12]
[369094616,1751472651511,-492.83201767,0.00032876,12]
[369094617,1751472651521,-1179.03,0.00032876,12]
[369094618,1751472651531,-460.0,0.00032876,12]
[369094619,1751472651542,-460.0,0.00032876,12]
[369094620,1751472651551,-516.53904213,0.00032876,12]
[369094621,1751472651563,-460.0,0.00032876,12]
[369094622,1751472651573,-460.0,0.00032876,12]
[369094623,1751472651582,-460.0,0.00032876,12]
[369094624,1751472651592,-522.17406747,0.00032876,12]
[369094625,1751472651602,-588.84,0.00032876,12]
[369094626,1751472651613,-490.0,0.00032876,12]
[369094627,1751472651623,-460.0,0.00032876,12]
[369094628,1751472651632,-460.0,0.00032876,12]
[369094629,1751472651643,-460.0,0.00032876,12]
[369094630,1751472651653,-460.0,0.00032876,12]
[369094631,1751472651664,-777.23,0.00032876,12]
[369094632,1751472651674,-495.71,0.00032876,12]
[369094633,1751472651683,-460.0,0.00032876,12]
[369094634,1751472651692,-460.0,0.00032876,12]
[369094635,1751472651702,-490.0,0.00032876,12]
[369094636,1751472651712,-1629.65,0.00032876,12]
[369094637,1751472651722,-460.0,0.00032876,12]
[369094638,1751472651732,-460.0,0.00032876,12]
[369094639,1751472651742,-460.0,0.00032876,12]
[369094640,1751472651751,-460.0,0.00032876,12]
[369094641,1751472651761,-490.0,0.00032876,12]
[369094642,1751472651771,-460.0,0.00032876,12]
[369094643,1751472651781,-460.0,0.00032876,12]
[369094644,1751472651791,-225.9018356,0.00032876,12]
[369094645,1751472651801,-460.0,0.00032876,12]
[369094646,1751472651813,-460.0,0.00032876,12]
[369094647,1751472651823,-460.0,0.00032876,12]
[369094648,1751472651833,-460.0,0.00032876,12]
[369094649,1751472651843,-460.0,0.00032876,12]
[369094650,1751472651852,-730.49,0.00032876,12]
[369094651,1751472651862,-1648.07,0.00032876,12]
[369094652,1751472651872,-460.0,0.00032876,12]
[369094653,1751472651882,-1240.85,0.00032876,12]
[369094654,1751472651891,-460.0,0.00032876,12]
[369094655,1751472651901,-460.0,0.00032876,12]
[369094656,1751472651910,-460.0,0.00032876,12]
[369094657,1751472651920,-1352.08,0.00032876,12]
[369094658,1751472651930,-460.0,0.00032876,12]
[369094659,1751472651940,-251.79779011,0.00032876,12]
[369094660,1751472651950,-460.0,0.00032876,12]
[369094661,1751472651965,-460.0,0.00032876,12]
[369094662,1751472651975,-460.0,0.00032876,12]
[369094663,1751472651985,-658.5,0.00032876,12]
[369094664,1751472651995,-520.98,0.00032876,12]
[369094665,1751472652005,-460.0,0.00032876,12]
[369094666,1751472652015,-460.0,0.00032876,12]
[369094667,1751472652024,-1500.0,0.00032876,60]
[369094668,1751472652034,-557.64,0.00032876,12]
[369094669,1751472652044,-460.0,0.00032876,12]
[369094670,1751472652054,-490.0,0.00032876,12]
[369094671,1751472652065,-334.09,0.00032876,12]
[369094672,1751472652074,-460.0,0.00032876,12]
[369094673,1751472652084,-460.0,0.00032876,12]
[369094674,1751472652094,-460.0,0.00032876,12]
[369094675,1751472652104,-460.0,0.00032876,12]
[369094676,1751472652114,-460.0,0.00032876,12]
[369094677,1751472652124,-460.0,0.00032876,12]
[369094678,1751472652134,-460.0,0.00032876,12]
[369094679,1751472652144,-460.0,0.00032876,12]
[369094680,1751472652154,-460.0,0.00032876,12]
[369094681,1751472652163,-460.0,0.00032876,12]
[369094682,1751472652173,-460.0,0.00032876,12]
[369094683,1751472652183,-1337.5,0.00032876,12]
[369094684,1751472652192,-656.5,0.00032876,12]
[369094685,1751472652202,-460.0,0.00032876,12]
[369094686,1751472652212,-460.0,0.00032876,12]
[369094687,1751472652222,-460.0,0.00032876,12]
[369094688,1751472652231,-460.0,0.00032876,12]
[369094689,1751472652241,-1118.7,0.00032876,12]
[369094690,1751472652251,-460.0,0.00032876,12]
[369094691,1751472652261,-460.0,0.00032876,12]
[369094692,1751472652272,-460.0,0.00032876,12]
[369094693,1751472652283,-351.21427641,0.00032876,12]
[369094694,1751472652293,-547.55,0.00032876,12]
[369094695,1751472652303,-820.55,0.00032876,12]
[369094696,1751472652315,-377.86633215,0.00032876,12]
[369094697,1751472652324,-460.0,0.00032876,12]
[369094698,1751472652334,-460.0,0.00032876,12]
[369094699,1751472652343,-460.0,0.00032876,12]
[369094700,1751472652353,-460.0,0.00032876,12]
[369094701,1751472652363,-460.0,0.00032876,12]
[369094702,1751472652372,-490.0,0.00032876,12]
[369094703,1751472652382,-460.0,0.00032876,12]
[369094704,1751472652392,-460.0,0.00032876,12]
[369094705,1751472652402,-460.0,0.00032876,12]
[369094706,1751472652411,-806.94,0.00032876,12]
[369094707,1751472652422,-587.61,0.00032876,12]
[369094708,1751472652431,-460.0,0.00032876,12]
[369094709,1751472652441,-445.75222447,0.00032876,12]
[369094710,1751472652455,-460.0,0.00032876,12]
[369094711,1751472652464,-460.0,0.00032876,12]
[369094712,1751472652474,-460.0,0.00032876,12]
[369094713,1751472652484,-490.0,0.00032876,12]
[369094714,1751472652494,-556.28,0.00032876,12]
[369094715,1751472652504,-482.47,0.00032876,12]
[369094716,1751472652514,-460.0,0.00032876,12]
[369094717,1751472652524,-460.0,0.00032876,12]
[369094718,1751472652538,-1300.11,0.00032876,12]
[369094719,1751472652547,-507.24,0.00032876,12]
[369094720,1751472652558,-490.0,0.00032876,12]
[369094721,1751472652569,-490.0,0.00032876,12]
[369094722,1751472652582,-460.0,0.00032876,12]
[369094723,1751472652592,-1384.73,0.00032876,12]
[369094724,1751472652602,-460.0,0.00032876,12]
[369094725,1751472652612,-595.74,0.00032876,12]
[369094726,1751472652623,-460.0,0.00032876,12]
[369094727,1751472652632,-460.0,0.00032876,12]
[369094728,1751472652643,-922.87,0.00032876,12]
[369094729,1751472652652,-422.93503941,0.00032876,12]
[369094730,1751472652662,-576.87,0.00032876,12]
[369094731,1751472652671,-460.0,0.00032876,12]
[369094732,1751472652681,-492.66921705,0.00032876,12]
[369094733,1751472652691,-460.0,0.00032876,12]
[369094734,1751472652701,-1079.13,0.00032876,12]
[369094735,1751472652710,-460.0,0.00032876,12]
[369094736,1751472652723,-460.0,0.00032876,12]
[369094737,1751472652733,-490.0,0.00032876,12]
[369094738,1751472652743,-460.0,0.00032876,12]
[369094739,1751472652749,-460.0,0.00032876,12]
[369094740,1751472652757,-460.0,0.00032876,12]
[369094741,1751472652763,-1412.46,0.00032876,12]
[369094742,1751472652772,-490.0,0.00032876,12]
[369094743,1751472652782,-519.44,0.00032876,12]
[369094744,1751472652893,-460.0,0.00032876,12]
[369094745,1751472652903,-906.89,0.00032876,12]
[369094746,1751472652913,-460.0,0.00032876,12]
[369094747,1751472652922,-1408.8,0.00032876,12]
[369094748,1751472652932,-460.0,0.00032876,12]
[369094749,1751472652941,-1140.23,0.00032876,12]
[369094750,1751472652951,-374.55787691,0.00032876,12]
[369094751,1751472652960,-460.0,0.00032876,12]
[369094752,1751472652969,-1013.52,0.00032876,12]
[369094753,1751472652979,-490.0,0.00032876,12]
[369094754,1751472652989,-460.0,0.00032876,12]
[369094755,1751472652998,-460.0,0.00032876,12]
[369094756,1751472653008,-500.0,0.00032876,12]
[369094757,1751472653017,-1266.74,0.00032876,12]
[369094758,1751472653027,-460.0,0.00032876,12]
[369094759,1751472653037,-467.27,0.00032876,12]
[369094760,1751472653047,-460.0,0.00032876,12]
[369094761,1751472653060,-460.0,0.00032876,12]
[369094762,1751472653070,-460.0,0.00032876,12]
[369094763,1751472653079,-460.0,0.00032876,12]
[369094764,1751472653089,-1019.72,0.00032876,12]
[369094765,1751472653099,-2691.49,0.00032876,12]
[369094766,1751472653108,-671.85,0.00032876,12]
[369094767,1751472653117,-460.0,0.00032876,12]
[369094768,1751472653127,-460.0,0.00032876,12]
[369094769,1751472653136,-460.0,0.00032876,12]
[369094770,1751472653146,-460.0,0.00032876,12]
[369094771,1751472653165,-460.0,0.00032876,12]
[369094772,1751472653175,-481.53,0.00032876,12]
[369094773,1751472653184,-1119.98,0.00032876,12]
[369094774,1751472653193,-460.0,0.00032876,12]
[369094775,1751472653203,-460.0,0.00032876,12]
[369094776,1751472653212,-628.19,0.00032876,12]
[369094777,1751472653221,-460.0,0.00032876,12]
[369094778,1751472653231,-538.87,0.00032876,12]
[369094779,1751472653240,-460.0,0.00032876,12]
[369094780,1751472653249,-460.0,0.00032876,12]
[369094781,1751472653259,-460.0,0.00032876,12]
[369094782,1751472653268,-520.0,0.00032876,12]
[369094783,1751472653277,-460.0,0.00032876,12]
[369094784,1751472653287,-460.0,0.00032876,12]
[369094785,1751472653296,-533.15,0.00032876,12]
[369094786,1751472653308,-460.0,0.00032876,12]
[369094787,1751472653318,-1214.34,0.00032876,12]
[369094788,1751472653327,-490.0,0.00032876,12]
[369094789,1751472653337,-520.0,0.00032876,12]
[369094790,1751472653347,-460.0,0.00032876,12]
[369094791,1751472653357,-490.0,0.00032876,12]
[369094792,1751472653366,-501.57656252,0.00032876,12]
[369094793,1751472653375,-814.25,0.00032876,12]
[369094794,1751472653385,-460.0,0.00032876,12]
[369094795,1751472653394,-460.0,0.00032876,12]
[369094796,1751472653404,-490.0,0.00032876,12]
[369094797,1751472653413,-460.0,0.00032876,12]
[369094798,1751472653423,-460.0,0.00032876,12]
[369094799,1751472653432,-166.20674689,0.00032876,12]
[369094800,1751472653442,-460.0,0.00032876,12]
[369094801,1751472653453,-460.0,0.00032876,12]
[369094802,1751472653467,-460.0,0.00032876,12]
[369094803,1751472653476,-460.0,0.00032876,12]
[369094804,1751472653486,-460.0,0.00032876,12]
[369094805,1751472653495,-1334.74,0.00032876,12]
[369094806,1751472653505,-460.0,0.00032876,12]
[369094807,1751472653515,-460.0,0.00032876,12]
[369094808,1751472653525,-1248.81,0.00032876,12]
[369094809,1751472653535,-460.0,0.00032876,12]
[369094810,1751472653545,-460.0,0.00032876,12]
[369094811,1751472653554,-683.29,0.00032876,12]
[369094812,1751472653566,-500.0,0.00032876,12]
[369094813,1751472653576,-460.0,0.00032876,12]
[369094814,1751472653585,-460.0,0.00032876,12]
[369094815,1751472653595,-811.37,0.00032876,12]
[369094816,1751472653606,-460.0,0.00032876,12]
[369094817,1751472653615,-460.0,0.00032876,12]
[369094818,1751472653625,-460.0,0.00032876,12]
[369094819,1751472653635,-460.0,0.00032876,12]
[369094820,1751472653644,-460.0,0.00032876,12]
[369094821,1751472653654,-460.0,0.00032876,12]
[369094822,1751472653664,-460.0,0.00032876,12]
[369094823,1751472653674,-460.0,0.00032876,12]
[369094824,1751472653684,-767.6,0.00032876,12]
[369094825,1751472653693,-460.0,0.00032876,12]
[369094826,1751472653703,-460.0,0.00032876,12]
[369094827,1751472653712,-460.0,0.00032876,12]
[369094828,1751472653722,-460.0,0.00032876,12]
[369094829,1751472653731,-813.06,0.00032876,12]
[369094830,1751472653741,-460.0,0.00032876,12]
[369094831,1751472653751,-460.0,0.00032876,12]
[369094832,1751472653760,-686.91,0.00032876,12]
[369094833,1751472653770,-460.0,0.00032876,12]
[369094834,1751472653779,-460.0,0.00032876,12]
[369094835,1751472653789,-490.0,0.00032876,12]
[369094836,1751472653798,-460.0,0.00032876,12]
[369094837,1751472653809,-482.29074079,0.00032876,12]
[369094838,1751472653819,-1145.19,0.00032876,12]
[369094839,1751472653829,-704.28,0.00032876,12]
[369094840,1751472653838,-548.91820789,0.00032876,12]
[369094841,1751472653848,-460.0,0.00032876,12]
[369094842,1751472653857,-460.0,0.00032876,7]
[369094843,1751472653867,-460.0,0.00032876,12]
[369094844,1751472653877,-460.0,0.00032876,12]
[369094845,1751472653890,-490.0,0.00032876,12]
[369094846,1751472653899,-490.0,0.00032876,12]
[369094847,1751472653909,-460.0,0.00032876,12]
[369094848,1751472653919,-511.93,0.00032876,12]
[369094849,1751472653928,-1281.85,0.00032876,12]
[369094850,1751472653938,-460.0,0.00032876,12]
[369094851,1751472653947,-477.36925213,0.00032876,12]
[369094852,1751472653956,-460.0,0.00032876,12]
[369094853,1751472653965,-361.04593265,0.00032876,12]
[369094854,1751472653975,-1057.68,0.00032876,12]
[369094855,1751472653984,-460.0,0.00032876,12]
[369094856,1751472653993,-690.72,0.00032876,12]
[369094857,1751472654003,-460.0,0.00032876,12]
[369094858,1751472654012,-460.0,0.00032876,12]
[369094859,1751472654023,-1135.16,0.00032876,12]
[369094860,1751472654033,-460.0,0.00032876,12]
[369094861,1751472654044,-460.0,0.00032876,12]
[369094862,1751472654054,-1737.87,0.00032876,12]
[369094863,1751472654065,-460.0,0.00032876,12]
[369094864,1751472654075,-570.5,0.00032876,12]
[369094865,1751472654084,-460.0,0.00032876,12]
[369094866,1751472654095,-460.0,0.00032876,12]
[369094867,1751472654106,-460.0,0.00032876,12]
[369094868,1751472654118,-479.65,0.00032876,12]
[369094869,1751472654129,-460.0,0.00032876,12]
[369094870,1751472654139,-1002.11,0.00032876,12]
[369094871,1751472654148,-523.76889134,0.00032876,12]
[369094872,1751472654158,-460.0,0.00032876,12]
[369094873,1751472654168,-460.0,0.00032876,12]
[369094874,1751472654178,-857.23,0.00032876,12]
[369094875,1751472654188,-460.0,0.00032876,12]
[369094876,1751472654197,-460.0,0.00032876,12]
[369094877,1751472654207,-618.39,0.00032876,12]
[369094878,1751472654216,-460.0,0.00032876,12]
[369094879,1751472654226,-1924.71,0.00032876,12]
[369094880,1751472654236,-460.0,0.00032876,12]
[369094881,1751472654246,-460.0,0.00032876,12]
[369094882,1751472654255,-490.0,0.00032876,12]
[369094883,1751472654265,-460.0,0.00032876,12]
[369094884,1751472654274,-490.0,0.00032876,12]
[369094885,1751472654284,-490.0,0.00032876,12]
[369094886,1751472654293,-612.09,0.00032876,12]
[369094887,1751472654303,-523.95,0.00032876,12]
[369094888,1751472654315,-460.0,0.00032876,12]
[369094889,1751472654325,-460.0,0.00032876,12]
[369094890,1751472654335,-1886.32,0.00032876,12]
[369094891,1751472654344,-460.0,0.00032876,12]
[369094892,1751472654354,-460.0,0.00032876,12]
[369094893,1751472654365,-460.0,0.00032876,12]
[369094894,1751472654375,-2044.44,0.00032876,12]
[369094895,1751472654385,-460.0,0.00032876,12]
[369094896,1751472654395,-460.0,0.00032876,12]
[369094897,1751472654406,-954.93,0.00032876,12]
[369094898,1751472654416,-460.0,0.00032876,12]
[369094899,1751472654426,-2362.16,0.00032876,12]
[369094900,1751472654436,-460.0,0.00032876,12]
[369094901,1751472654447,-460.0,0.00032876,12]
[369094902,1751472654458,-460.0,0.00032876,12]
[369094903,1751472654467,-460.0,0.00032876,12]
[369094904,1751472654477,-491.89591564,0.00032876,12]
[369094905,1751472654487,-460.0,0.00032876,12]
[369094906,1751472654496,-1936.24,0.00032876,12]
[369094907,1751472654506,-460.0,0.00032876,12]
[369094908,1751472654516,-460.0,0.00032876,12]
[369094909,1751472654526,-570.23,0.00032876,12]
[369094910,1751472654538,-494.8,0.00032876,12]
[369094911,1751472654548,-460.0,0.00032876,12]
[369094912,1751472654558,-2370.59,0.00032876,12]
[369094913,1751472654568,-490.0,0.00032876,12]
[369094914,1751472654579,-892.88,0.00032876,12]
[369094915,1751472654589,-490.0,0.00032876,12]
[369094916,1751472654599,-460.0,0.00032876,12]
[369094917,1751472654607,-490.0,0.00032876,12]
[369094918,1751472654617,-473.18,0.00032876,12]
[369094919,1751472654626,-460.0,0.00032876,12]
[369094920,1751472654636,-1221.1,0.00032876,12]
[369094921,1751472654647,-1195.54,0.00032876,12]
[369094922,1751472654656,-460.0,0.00032876,12]
[369094923,1751472654666,-460.0,0.00032876,12]
[369094924,1751472654676,-460.0,0.00032876,12]
[369094925,1751472654687,-460.0,0.00032876,12]
[369094926,1751472654698,-693.99,0.00032876,12]
[369094927,1751472654709,-693.99,0.00032876,12]
[369094928,1751472654720,-460.0,0.00032876,12]
[369094929,1751472654731,-693.99,0.00032876,12]
[369094930,1751472654741,-460.0,0.00032876,12]
[369094931,1751472654750,-693.99,0.00032876,12]
[369094932,1751472654761,-460.0,0.00032876,12]
[369094933,1751472654772,-693.99,0.00032876,12]
[369094934,1751472654782,-460.0,0.00032876,12]
[369094935,1751472654792,-693.99,0.00032876,12]
[369094936,1751472654803,-693.99,0.00032876,12]
[369094937,1751472654820,-693.99,0.00032876,12]
[369094938,1751472654830,-460.0,0.00032876,12]
[369094939,1751472654840,-460.0,0.00032876,12]
[369094940,1751472654850,-349.50070444,0.00032876,12]
[369094941,1751472654860,-460.0,0.00032876,12]
[369094942,1751472654870,-460.0,0.00032876,12]
[369094943,1751472654880,-460.0,0.00032876,12]
[369094944,1751472654890,-1669.04,0.00032876,12]
[369094945,1751472654900,-460.0,0.00032876,12]
[369094946,1751472654910,-460.0,0.00032876,12]